[Event "Summer Prague Open-A 2024"]
[Site "Prague"]
[Date "2024.08.05"]
[Round "5.28"]
[White "Kotal, Vaclav"]
[Black "Thomas, Tobias"]
[Result "1-0"]
[Annotator "TA"]
[ECO "A45"]
[WhiteElo "2151"]
[BlackElo "1966"]
[PlyCount "82"]
[EventDate "2024.08.02"]
[EventType "swiss"]
[EventCountry "CZE"]
[SourceTitle "playchess.com"]
[Source "ChessBase"]
[SourceQuality "1"]
[TimeControl "40/5400+30:1800+30"]

{[%evp 11,82,0,8,0,15,18,13,0,8,13,11,11,18,15,16,15,14,18,10,9,24,19,24,9,30,6,20,6,21,20,27,5,10,11,11,10,11,-29,42,22,26,12,125,134,129,127,126,119,98,98,129,84,258,254,29979,29980,29963,994,2473,259,260,220,188,18,10,12,12,-2149,-891,-29983,-29984,-29994,-29995]} 1. d4 {[%emt 0:00:02]} Nf6 {[%emt 0:00:07]} 2. Bg5 {[%emt 0:00:13]} d5 {[%emt 0:00:33]} 3. Bxf6 {[%emt 0:02:28]} exf6 {[%emt 0:00:08]} 4. e3 {[%emt 0:00:12]} g6 {[%emt 0:04:21]} 5. g3 {[%emt 0:04:16]} Bg7 {[%emt 0:00:44]} 6. Bg2 {[%emt 0:00:20]} O-O {[%emt 0:00:58]} 7. Ne2 {[%emt 0:00:47]} Bg4 {[%emt 0:01:34] [#]} 8. c4 $1 {[%emt 0:05:29]} dxc4 {[%emt 0:14:18]} 9. Nd2 {[%emt 0:03:20] The position is equal.} c6 {[%emt 0:01:52]} 10. Nxc4 {[%emt 0:06:38]} Nd7 {[%emt 0:07:15]} 11. O-O {[%emt 0:03:42]} Nb6 {[%emt 0:02:19]} 12. Nd2 {[%emt 0:05:14]} Re8 {[%emt 0:05:53]} 13. Nb3 {[%emt 0:01:53]} Bf8 {[%emt 0:06:17]} 14. h3 {[%emt 0:03:58]} Bxe2 {[%emt 0:00:34]} 15. Qxe2 {[%emt 0:00:02]} Qd7 {[%emt 0:03:25]} 16. Rfc1 {[%emt 0:01:38]} Rad8 {[%emt 0:01:55]} 17. a4 {[%emt 0:02:02][%cal Ba2a4,Ba4a5][%mdl 32]} a6 {[%emt 0:01:38]} 18. a5 {[%emt 0:07:46]} Nd5 {[%emt 0:01:22]} 19. Nc5 {[%emt 0:02:33]} Bxc5 {[%emt 0:02:41]} 20. Rxc5 {[%emt 0:00:13]} Qe6 {[%emt 0:09:03]} 21. Rac1 {[%emt 0:05:57]} f5 {[%emt 0:03:10]} 22. Qc4 {[%emt 0:06:52]} Nf6 {[%emt 0:01:57]} 23. Qb4 {[%emt 0:03:29]} Qe7 {[%emt 0:07:52]} 24. Qb6 {[%emt 0:09:27]} Ne4 {[%emt 0:06:21]} ({Black should play} 24... Nd7 $11 25. Qxb7 Nxc5 26. Qxe7 Rxe7 27. Rxc5 Rb8) 25. Bxe4 $14 {[%emt 0:09:24]} fxe4 {[%emt 0:00:01]} 26. d5 {[%emt 0:00:14]} Rxd5 {[%emt 0:06:57]} (26... cxd5 $11 {remains equal.} 27. Rc7 Qe5) 27. Rxd5 $16 {[%emt 0:00:07]} cxd5 $11 {[%emt 0:00:01][%mdl 4096] Endgame. KQR-KQR} 28. Rc7 {[%emt 0:00:26] White is more active.} Qe5 {[%emt 0:02:34][%cal Od5d4]} 29. Qxb7 {[%emt 0:05:47]} d4 {[%emt 0:05:55] [#]} 30. exd4 {[%emt 0:00:57]} (30. Rxf7 $6 dxe3 31. Qb3 exf2+ (31... Qxa5 32. Re7+ Kh8 33. Rxe8+ Kg7 34. Re7+ Kh6 35. Qxe3+ Qg5 36. Rxh7+ Kxh7 37. Qxg5) 32. Kxf2 Kh8 $11 (32... Qxa5 33. Re7+ Kh8 34. Rxe8+ Kg7 35. Qg8+ Kh6 36. Qf8+ Kh5 37. g4+ Kg5 38. Qe7+ Kh6 39. Qh4+)) 30... Qf5 {[%emt 0:02:39]} 31. Qc6 {[%emt 0:04:59]} (31. Qxa6 $6 e3 32. fxe3 Qf3 $11) 31... Re6 {[%emt 0:00:26]} (31... Rf8 $16 {might work better.}) 32. Qc5 $18 {[%emt 0:02:42] Rc8+ would kill now.} Qxh3 $2 {[%emt 0:00:36]} (32... Kg7 $18 33. Rc8 Qxc5 34. dxc5 e3) 33. Rc8+ {[%emt 0:00:58]} Kg7 {[%emt 0:00:01]} 34. Qf8+ {[%emt 0:00:52]} Kf6 {[%emt 0:00:02]} 35. Qh8+ $2 {[%emt 0:02:02]} (35. Rc5 {Intending Qh8+ and mate.} Rd6 36. Qxd6+ Kg7 37. Qe5+ (37. Qxa6 Qd7 $18) 37... Kg8 38. Rc7 (38. Qxe4 Kg7 $18)) 35... Kg5 {[%emt 0:00:05] Threatens to win with ...e3.} 36. Rc5+ {[%emt 0:00:23]} (36. d5 Rf6 37. Rc6 Rf3 38. Qe5+ (38. Rxa6 $2 e3 $19) 38... Qf5 39. Qxf5+ Rxf5 $14) 36... Kg4 {[%emt 0:01:55] [#] ...e3 would now be deadly.} 37. Qb8 $2 {[%emt 0:00:49]} (37. d5 Kf3 38. Rc3+ e3 39. Rxe3+ Rxe3 40. Qf6+ Ke2 41. fxe3 Qxg3+ 42. Kh1 h6 $11 (42... Qxe3 43. d6 $11) (42... Kxe3 $2 43. Qc3+ Kf2 44. Qxg3+ Kxg3 45. d6 $18) (42... Qh3+ 43. Kg1 $11)) ({White must play} 37. Qd8 $1 $18 {[%cal Rd8g5] Threatening mate with Qg5+.} Kf3 38. Rc3+ e3 39. Qd5+ Kg4 40. Rxe3 Rxe3 41. fxe3 Kxg3 (41... Qxg3+ $2 42. Qg2 $18) 42. Qd6+ Kf3 43. Qf4+ Ke2 44. d5) 37... g5 $1 $11 {[%emt 0:00:43] aiming for ...e3.} 38. Qb3 {[%emt 0:00:43][%cal Rb3d1]} e3 $1 {[%emt 0:00:34] ( -> ...exf2+)} 39. f3+ {[%emt 0:00:33][%mdl 8192]} (39. Qd1+ $11 e2 40. Qe1) 39... Kxf3 {[%emt 0:00:36]} (39... Kh5 $142 40. Qc2 Qxg3+ 41. Qg2 Qxg2+ 42. Kxg2 e2) 40. Qb7+ {[%emt 0:00:23]} Kg4 {[%emt 0:00:34]} (40... Kxg3 41. Rxg5+ Kh4 42. Qd5 $17) 41. Rc2 {[%emt 0:08:58]} e2 {[%emt 0:04:44][%mdl 32768] Weighted Error Value: White=0.57/Black=0.58.  Loses game:     	White=1     	Black=1      Missed win:     	White=1     	---        Mistake:       	---       	Black=4      Inaccurate:     	White=3     	Black=1      OK:         	White=13    	Black=10     Best:        	White=3     	Black=2      Strong:       	---       	Black=2     . Loss on time!?} (41... Qxg3+ $2 {too greedy.} 42. Rg2 e2 43. Rxg3+ Kxg3 44. Qg2+ (44. Qxf7 {gets mated.} e1=Q+ 45. Qf1 Qe3+) 44... Kh4 45. Qf2+ Kg4 46. Qe1 $18 (46. Qxf7 {leads to mate.} e1=Q+ 47. Qf1 Qg3+ 48. Kh1 Rh6+)) 1-0